Cogmind - Beta 13 @@@ ROGUE MODE // 2024.04.15 @ 01:26:46 Player: JackieG Result: Destroyed by H-66 Slayer with Gauss Rifle Performance ------------- Evolutions (4) 2000 Regions Visited (5) 1000 Robots Destroyed (42) 210 Value Destroyed (1114) 1114 Prototype IDs (1) 20 Alien Tech Used (0) 0 Bonus (91) 91 TOTAL SCORE: 4435 Bonus ------- High Alert Combat Kills 91 Cogmind --------- Core Integrity 0/850 Matter 300/300 Energy 99/100 System Corruption 0% Temperature Cool (0) Movement Core (50) Location -6/Factory Parts ------- > --- POWER (1) -------- (None) > --- PROPULSION (4) --- (None) > --- UTILITY (8) ------ Terrain Scan Processor Hacking Suite Hacking Suite > --- WEAPON (2) ------- (None) > --- INVENTORY (5) ---- Light Nuclear Core Improved Field Recycling Unit (0) Heavy Laser Improved Datajack Power Maul Peak State ------------ > --- POWER ------------ Light Ion Engine > --- PROPULSION ------- Improved Carbon-fiber Leg Improved Carbon-fiber Leg Improved Carbon-fiber Leg > --- UTILITY ---------- Small Storage Unit Improved Terrain Scanner Terrain Scan Processor Makeshift Light Armor Plating Makeshift Hacking Suite > --- WEAPON ----------- Barrage Gun Enhanced Autogun > --- INVENTORY -------- Light Ion Engine Light Treads Spiked Treads Flight Unit Battle Rifle Battle Cannon Battle Cannon Mining Laser [Rating: 35] Favorites ----------- Power Light Ion Engine Engine Light Ion Engine Power Core Light Nuclear Core Propulsion Light Treads Treads Light Treads Leg Improved Carbon-fiber Leg Flight Unit VTOL Module Utility Improved Terrain Scanner Device Improved Terrain Scanner Storage Small Storage Unit Processor Terrain Scan Processor Hackware Hacking Suite Protection Makeshift Light Armor Plating Weapon Medium Laser Energy Gun Medium Laser Ballistic Gun Enhanced Autogun Ballistic Cannon Battle Cannon Special Weapon Mining Laser Impact Weapon Power Maul Special Melee Weapon Improved Datajack Build | -11 -10 -10 -8 -7 -6 ------- Run | Yrd Mat Sub Mat Fac Fac Slots Evolved 8 | . . . 4 2 2 Power . | . . . . . . Propulsion 2 | . . . 1 1 . Utility 6 | . . . 3 1 2 Weapon . | . . . . . . Parts Attached 62 | 7 . 16 24 12 3 Power 11 | 1 . 6 2 2 . Engine 9 | 1 . 6 1 1 . Core 2 | . . . 1 1 . Reactor . | . . . . . . Propulsion 13 | 2 . 1 8 2 . Treads 7 | 2 . 1 4 . . Leg 3 | . . . 3 . . Wheel . | . . . . . . Hover . | . . . . . . Flight 3 | . . . 1 2 . Utility 13 | 2 . . 8 3 . Device 4 | 1 . . 1 2 . Storage 2 | 1 . . 1 . . Processor 2 | . . . 2 . . Hackware 4 | . . . 3 1 . Protection 1 | . . . 1 . . Artifact . | . . . . . . Weapon 25 | 2 . 9 6 5 3 Energy Gun 8 | 2 . 2 1 2 1 Energy Cannon . | . . . . . . Ballistic Gun 5 | . . . 3 2 . Ballistic Cannon 5 | . . 3 2 . . Launcher . | . . . . . . Special Weapon 4 | . . 4 . . . Impact Weapon 2 | . . . . 1 1 Slashing Weapon . | . . . . . . Piercing Weapon . | . . . . . . Special Melee Weapon 1 | . . . . . 1 Unidentified Prototypes 1 | . . . 1 . . Parts Lost 17 | . . 1 8 1 7 Power 3 | . . . 2 . 1 Propulsion 7 | . . 1 4 . 2 Utility 3 | . . . . . 3 Weapon 4 | . . . 2 1 1 Highest Loss Streak 6 | . . 1 6 1 6 To Critical Strikes . | . . . . . . Average Slot Usage (%) 91 | . 100 99 84 63 61 Engine 11 | . 14 14 5 4 5 Treads 20 | . 28 27 9 . . Leg 1 | . . . 11 . . Flight 1 | . . . 1 6 11 Device 11 | . 14 14 7 5 2 Storage 10 | . 14 14 7 . . Processor 3 | . . . 10 11 6 Hackware 5 | . . . 10 25 25 Energy Gun 14 | . 28 18 3 1 . Ballistic Gun 1 | . . . 7 2 . Ballistic Cannon 4 | . . 6 3 . . Special Weapon 1 | . . 3 . . . Naked Turns . | . . . . . . Heaviest Build 36 | 12 12 16 36 9 8 Greatest Support 60 | 40 40 40 60 8 8 Greatest Overweight (x) 4 | . . . 4 2 . Average Overweight (x) . | . . . . . . Largest Inventory Capacity 15 | 8 8 8 15 5 5 Average Capacity 8 | 7 8 8 10 5 5 Most Carried 15 | 5 7 8 15 5 5 Average Carried 7 | 3 5 7 8 4 4 Final Capacity 8 | 8 8 8 5 5 5 Final Carried 8 | 5 7 8 4 5 5 Class Distribution -------------------- 77% | Mutant 10% | Hacker-Sprinter 6% | Hacker-Mutant 5% | Scavenger-Mutant Dominant Class ---------------- Mutant | -10/Materials Mutant | -10/Subcaves Mutant | -8/Materials Hacker-Sprinter | -7/Factory Hacker-Sprinter | -6/Factory Resources | -11 -10 -10 -8 -7 -6 ----------- Run | Yrd Mat Sub Mat Fac Fac Matter Collected 1333 | 184 26 355 477 266 25 Remotely . | . . . . . . Salvage Created 1156 | 14 26 272 496 292 56 Parts 70 | 3 5 14 28 20 . Haulers Intercepted . | . . . . . . Recyclers Shooed . | . . . . . . Parts Field Recycled . | . . . . . . Retrieved Matter . | . . . . . . Parts Self-Destructed 15 | . . 15 . . . Prevented . | . . . . . . Kills | -11 -10 -10 -8 -7 -6 ------- Run | Yrd Mat Sub Mat Fac Fac Combat Hostiles Destroyed 30 | . . 10 12 6 2 Melee 1 | . . . . . 1 Guns 18 | . . 3 10 5 . Cannons 9 | . . 7 2 . . Classes Destroyed 11 | 1 1 3 4 2 . Worker 1 | . . . 1 . . Builder 3 | . 2 . . 1 . Tunneler 3 | 1 . . . 1 1 Recycler 1 | . . . . 1 . Operator 3 | . . . 2 1 . Watcher 1 | . . . . 1 . Swarmer 14 | . . 3 3 6 2 Grunt 7 | . . . 7 . . Sentry 2 | . . 1 1 . . Hunter 1 | . . . 1 . . Subdweller 6 | . . 6 . . . Best Kill Streak 4 | 1 1 3 3 4 1 Combat Bots Only 3 | . . 3 3 3 1 Max Kills in Single Turn 2 | 1 1 2 1 1 1 Gunslinging . | . . . . . . Exploded . | . . . . . . Melee 1 | . . . . . 1 Uniques/NPCs Destroyed . | . . . . . . Combat | -11 -10 -10 -8 -7 -6 -------- Run | Yrd Mat Sub Mat Fac Fac Hostile Shots Fired 362 | . . 95 124 38 105 Missed 113 | . . 43 23 9 38 Damage Taken 3629 | . . 725 1362 424 1118 Core 1378 | . . 160 164 195 859 Absorbed by Shields . | . . . . . . Core Remaining (%) 69 | 100 . 36 70 72 . Volleys Fired 134 | 2 2 61 55 14 . Largest 2 | 2 2 2 2 2 . Hottest 150 | 90 90 150 104 94 . Shots Fired 238 | 4 4 99 107 24 . Gun 170 | 4 4 44 94 24 . Cannon 41 | . . 28 13 . . Launcher . | . . . . . . Special 27 | . . 27 . . . Kinetic 128 | . . 28 88 12 . Thermal 110 | 4 4 71 19 12 . Explosive . | . . . . . . Electromagnetic . | . . . . . . Robot Hit Streak 21 | 3 6 21 6 4 . Robot Miss Streak 3 | . . 2 2 3 . Penetration Max . | . . . . . . Secondary Targets 1 | . . . 1 . . Max Gunslinging Chain 1 | . . . 1 . . Shots Hit Robots 152 | 3 3 53 66 17 10 Core Hits 59 | 1 2 16 28 11 1 Critical Kills 2 | . . . . 1 1 Critical Parts Destroyed 4 | . . . . 2 2 Critical Strikes 12 | . . 6 . 3 3 Burn 3 | . . 3 . . . Destroy 1 | . . . . 1 . Blast 3 | . . 3 . . . Smash 5 | . . . . 2 3 Melee Attacks 23 | . . . . 8 15 Impact 20 | . . . . 8 12 Slashing . | . . . . . . Piercing . | . . . . . . Sneak Attacks 6 | . . . . 2 4 Combat Hostiles 3 | . . . . . 3 Follow-up Attacks 1 | . . . . . 1 Damage Inflicted 3147 | 35 35 887 1160 625 405 Guns 1691 | 35 35 351 1042 228 . Cannons 654 | . . 536 118 . . Explosions . | . . . . . . Melee 802 | . . . . 397 405 Ramming . | . . . . . . Kinetic 1661 | . . 536 994 131 . Thermal 684 | 35 35 351 166 97 . Explosive . | . . . . . . Electromagnetic . | . . . . . . Impact 802 | . . . . 397 405 Slashing . | . . . . . . Piercing . | . . . . . . Highest Corruption . | . . . . . . Average Corruption . | . . . . . . Corruption Purged . | . . . . . . Corruption Blocked . | . . . . . . Overload Shots . | . . . . . . Overflow Damage 261 | . . 6 . 76 179 Projectiles 6 | . . 6 . . . Explosions . | . . . . . . Melee 255 | . . . . 76 179 Knockbacks 11 | . . 7 2 . 2 Impact 2 | . . . . . 2 Kinetic 9 | . . 7 2 . . Secondary . | . . . . . . Self-Inflicted Damage . | . . . . . . Shots . | . . . . . . Rammed . | . . . . . . Targets Rammed . | . . . . . . Kicked . | . . . . . . Crushed . | . . . . . . Highest Temperature 611 | 60 30 19 611 121 3 Average Temperature 155 | 30 18 9 188 64 3 Received Heat Transfer 1041 | . . 186 684 . 171 Effects 17 | . . . 17 . . Shutdowns 1 | . . . 1 . . Energy Bleed 3 | . . . 3 . . Interference 2 | . . . 2 . . Matter Decay 1 | . . . 1 . . Short Circuit 4 | . . . 4 . . Damage (minor) 1 | . . . 1 . . Damage (major) 5 | . . . 5 . . Siege Activations . | . . . . . . Robots Corrupted . | . . . . . . Combat Hostiles . | . . . . . . Parts Fried 9 | . . . . 6 3 Impact Corruptions 10 | . . . . 5 5 Robots Melted . | . . . . . . Combat Hostiles . | . . . . . . Parts Melted 3 | . 1 . 1 1 . Heat Transferred 2073 | 99 99 1246 444 185 . Parts Sabotaged . | . . . . . . Parts Stolen . | . . . . . . Parts Stripped . | . . . . . . Power Chain Reactions . | . . . . . . Alert | -11 -10 -10 -8 -7 -6 ------- Run | Yrd Mat Sub Mat Fac Fac Peak Influence 643 | 5 13 . 643 420 435 Initial 299 | . 3 . 299 164 205 Average 225 | 3 5 . 424 318 301 Maximum Alert Level 2 | . . . 2 2 2 Low Security (%) 42 | 100 100 . . 15 . Level 1 34 | . . . 48 56 85 Level 2 22 | . . . 51 27 14 Level 3 . | . . . . . . Level 4 . | . . . . . . Level 5 . | . . . . . . High Security . | . . . . . . Max Security . | . . . . . . Squads Dispatched 10 | . . . 4 1 5 Investigation 4 | . . . 1 . 3 Extermination . | . . . . . . Reinforcement 6 | . . . 3 1 2 Assault . | . . . . . . Garrison . | . . . . . . Intercept . | . . . . . . Searches Triggered 1 | . . . 1 . . Construction Impeded 1 | . . . 1 . . Haulers Reinforced . | . . . . . . Active Scanning Responses . | . . . . . . Cargo Convoy Interrupts . | . . . . . . Stealth | -11 -10 -10 -8 -7 -6 --------- Run | Yrd Mat Sub Mat Fac Fac Distress Signals 6 | . . . 2 . 4 Communications Jammed . | . . . . . . Distress Signals . | . . . . . . Times Spotted 114 | . . 46 22 11 35 Peak Tracking Total 16 | . . 6 4 4 16 Tactical Retreats 12 | . . 2 4 2 4 Traps | -11 -10 -10 -8 -7 -6 ------- Run | Yrd Mat Sub Mat Fac Fac Traps Triggered 5 | . . 3 1 1 . Indirectly . | . . . . . . Trap Hack Attempts . | . . . . . . Triggered . | . . . . . . Disarmed . | . . . . . . Reprogrammed . | . . . . . . Reused . | . . . . . . Traps Extracted . | . . . . . . Installed . | . . . . . . Triggered . | . . . . . . Machines | -11 -10 -10 -8 -7 -6 ---------- Run | Yrd Mat Sub Mat Fac Fac Machines Disabled . | . . . . . . Max in Single Turn . | . . . . . . Machines Repaired . | . . . . . . Machines Dismantled . | . . . . . . Machines Sabotaged . | . . . . . . Overloaded Fab Kills . | . . . . . . Hacking | -11 -10 -10 -8 -7 -6 --------- Run | Yrd Mat Sub Mat Fac Fac Machines Accessed 9 | . 1 1 2 2 3 Terminals 5 | . 1 . 1 . 3 Fabricators . | . . . . . . Repair Stations . | . . . . . . Recycling Units 2 | . . . 1 1 . Scanalyzers . | . . . . . . Garrison Access 1 | . . . . 1 . Total Hacks 20 | . 2 1 4 3 10 Successful 12 | . . 1 1 1 9 Failed 8 | . 2 . 3 2 1 Catastrophic 1 | . 1 . . . . Database Lockouts . | . . . . . . Manual 12 | . 2 2 3 3 2 Terminals 15 | . 2 . 3 . 10 Fabricators . | . . . . . . Repair Stations . | . . . . . . Recycling Units 2 | . . . 1 1 . Scanalyzers . | . . . . . . Garrison Access 2 | . . . . 2 . Terminal Hacks 8 | . . 1 . . 7 Record 6 | . . 1 . . 5 Emergency Access Points 1 | . . . . . 1 Alert Level 1 | . . . . . 1 Fabricator Hacks . | . . . . . . Repair Station Hacks . | . . . . . . Recycling Unit Hacks 1 | . . . 1 . . Retrieve Components 1 | . . . 1 . . Scanalyzer . | . . . . . . Garrison Access Hacks . | . . . . . . Unauthorized Hacks 3 | . . . . 1 2 Terminals 2 | . . . . . 2 Assimilate 2 | . . . . . 2 Fabricators . | . . . . . . Repair Stations . | . . . . . . Recycling Units . | . . . . . . Scanalyzers . | . . . . . . Garrison Access 1 | . . . . 1 . Reprogram 1 | . . . . 1 . Data Cores Recovered . | . . . . . . Used . | . . . . . . Hacking Detections 8 | . 1 . 2 2 3 Full Trace Events 3 | . . . . . 3 Feedback Events . | . . . . . . Feedback Blocked . | . . . . . . Robot Schematics Acquired . | . . . . . . Robots Built . | . . . . . . Authchips . | . . . . . . Time . | . . . . . . Total Robot Build Rating . | . . . . . . Part Schematics Acquired . | . . . . . . Parts Built . | . . . . . . Authchips . | . . . . . . Time . | . . . . . . Total Part Build Rating . | . . . . . . Parts Repaired . | . . . . . . Time . | . . . . . . Parts Recycled . | . . . . . . Recycled Matter . | . . . . . . Retrieved Matter . | . . . . . . Retrieved Components 9 | . . . 9 . . Parts Scanalyzed . | . . . . . . Part Schematics Acquired . | . . . . . . Parts Damaged . | . . . . . . Bothacking | -11 -10 -10 -8 -7 -6 ------------ Run | Yrd Mat Sub Mat Fac Fac Used RIF Installer . | . . . . . . Robots Hacked . | . . . . . . Non-combat . | . . . . . . Combat . | . . . . . . Robot Hacks Applied . | . . . . . . Relay Couplers Released . | . . . . . . Fabnet Peak Effective % . | . . . . . . Robots Rewired 1 | . . . . . 1 Allies Hacked . | . . . . . . Hacks Repelled . | . . . . . . Allies | -11 -10 -10 -8 -7 -6 -------- Run | Yrd Mat Sub Mat Fac Fac Total Allies 3 | . . . . . 3 Largest Group 3 | . . . . . 3 Highest-Rated Group 81 | . . . . . 81 Highest-Rated Ally 29 | . . . . . 29 Total Orders 2 | . . . . . 2 STAY 1 | . . . . . 1 ROAM 1 | . . . . . 1 Ally Attacks 9 | . . . . . 9 Total Damage 113 | . . . . . 113 Kills . | . . . . . . Allies Corrupted . | . . . . . . Allies Melted . | . . . . . . Intel | -11 -10 -10 -8 -7 -6 ------- Run | Yrd Mat Sub Mat Fac Fac Robot Analysis Total . | . . . . . . Derelict Logs Recovered 1 | . . 1 . . . Drone Launches . | . . . . . . Drone Recoveries . | . . . . . . Exploration | -11 -10 -10 -8 -7 -6 ------------- Run | Yrd Mat Sub Mat Fac Fac Turns Passed 3581 | 349 355 1818 577 268 214 Spaces Moved 2355 | 207 114 857 357 357 463 Core 228 | 4 . . 68 126 30 Treads 1217 | 203 114 857 43 . . Legs 96 | . . . 96 . . Wheels . | . . . . . . Hover . | . . . . . . Flight 814 | . . . 150 231 433 Fastest Speed 32 | 50 160 160 40 32 32 Average Speed 105 | 157 160 160 82 41 33 Slowest Speed 250 | 160 160 160 250 150 50 Overloaded Moves . | . . . . . . Propulsion Burnouts . | . . . . . . Robots Hopped 13 | . . . 2 2 9 Cave-ins Triggered . | . . . . . . Exploration Rate (%) 21 | 10 14 66 15 15 11 Regions Visited 5 Branch Regions 1 Pre-discovered Areas 1 | . . 1 . . . Known Exits Taken . | . . . . . . Unknown Exits Taken 5 | 1 1 1 1 1 . Scrap Searched 5 | . . 5 . . . Spaces Dug . | . . . . . . Terrain Destroyed 3 | . . . 3 . . Melee . | . . . . . . Projectile 3 | . . . 3 . . AOE . | . . . . . . Terrain Rammed . | . . . . . . Walls Destroyed . | . . . . . . Machines Disabled . | . . . . . . Actions | -11 -10 -10 -8 -7 -6 --------- Run | Yrd Mat Sub Mat Fac Fac Total 3130 | 222 283 1147 552 435 491 Wait 483 | 2 166 193 89 14 19 Move 2325 | 206 113 856 352 352 446 Hop 12 | . . . 2 2 8 Pick Up 32 | 5 2 9 11 5 . Fast Attach 25 | 7 . 3 9 6 . Attach 17 | . . 1 10 5 1 Detach 9 | . . . 3 5 1 Swap 20 | . . 12 5 1 2 Drop 33 | . . 12 16 5 . Fire 134 | 2 2 61 55 14 . Melee 22 | . . . . 8 14 Ram . | . . . . . . Kick . | . . . . . . Crush . | . . . . . . Escape Stasis 18 | . . . . 18 . Rewire . | . . . . . . Trap . | . . . . . . Miscellaneous . | . . . . . . Route ------- -11/Scrapyard -10/Materials -10/Subcaves (discovered 2 exits: *Mat / [*Rec]) -8/Materials -7/Factory -6/Factory History --------- Turn | Location | Event 13 | -11/Scrapyard | Discovered new exit (range 15) 350 | -11/Scrapyard | Entered Materials 351 | -10/Materials | Build established: Mutant 362 | -10/Materials | Discovered new exit (range 11) 705 | -10/Materials | Entered Subcaves 707 | -10/Subcaves | Shifting Twisted Machinery released Flamer 708 | -10/Subcaves | Shifting Twisted Machinery released Spk. Treads 743 | -10/Subcaves | A swath of the cavern ceiling suddenly collapsed 1865 | -10/Subcaves | Visited Clippyterm 1902 | -10/Subcaves | Shifting Twisted Machinery released Humpback 1937 | -10/Subcaves | Shifting Twisted Machinery released Shrapnel Trap 2146 | -10/Subcaves | Learned location of Mines (-9) 2409 | -10/Subcaves | Shifting Twisted Machinery released Battle Cannon 2422 | -10/Subcaves | Discovered new exit (range 14) 2501 | -10/Subcaves | Shifting Twisted Machinery released Sub. Monowheel 2506 | -10/Subcaves | Discovered new exit (range 12) 2511 | -10/Subcaves | Core integrity fell below 50% 2523 | -10/Subcaves | Entered Materials 2523 | -8/Materials | Evolved 4 slots: Propulsion x1, Utility x3 2923 | -8/Materials | Search patrols dispatched 3015 | -8/Materials | Lost 6 parts (1p3n2w) 3073 | -8/Materials | Discovered new exit (range 11) 3100 | -8/Materials | Entered Factory 3100 | -7/Factory | Evolved 2 slots: Propulsion x1, Utility x1 3365 | -7/Factory | Discovered new exit (range 7) 3368 | -7/Factory | Entered another Factory area 3368 | -6/Factory | Evolved 2 slots: Utility x2 3571 | -6/Factory | Core integrity fell below 50% 3578 | -6/Factory | Core integrity fell below 20% 3582 | -6/Factory | Destroyed by H-66 Slayer with Gauss Rifle Last Messages --------------- Destroyed Lgt. Nuclear Core. S-27 Virus system corrupted by crushing effect. S-27 Virus system terminally corrupted. VTOL Module fried. U-05 Engineer lays Concrete. U-05 Engineer builds a Wall. Lgt. Ion Engine destroyed. VTOL Module destroyed. W-25 Informer sends out distress signal. U-05 Engineer lays Concrete. Mak. Hacking Suite destroyed. U-05 Engineer builds a Wall. Power Maul destroyed. U-05 Engineer lays Concrete. U-05 Engineer builds a Wall. S-27 Virus destroyed. S-27 Virus IFF system glitched. Hacking Suite destroyed. U-05 Engineer destroyed. Penetrated by Slug. Map ----- +----------------------------------------------------+ | ?????????????????????????????????????????????????? | | ?????????????????????????????????????????????????? | | ?????????????????????????????????????????????????? | | ?????????????????????????????????????????????????? | | ?????????????????????????????????????????????????? | | ?????????????????????????????????????????????????? | | ?????????????????????????????????????????????????? | | ?????????????????????????????????????????????????# | | ?????????????????????????????????????????????????? | | ?????????????????????????????????????????????????? | | ???????????????????????????????????????????????### | | ?????????????????????????????????????????????? | | ??????????????????????????????????????????????? | | ??????????????????????????????????????????????? ? | | ??????????????????????????????????????????????? ? | | ??????????????????????????????????????????????? ?? | | ?????????????????????????????????????????????????? | | ????????????????????????????????????????????????#? | | ???????????????????????????????????????????????##? | | ?????????????????????????????????????????????????? | | ?????????????????????????????????????????????????# | | ??????????????????????????????????????????????#??? | | ?????????????????????????????????????????????????? | | ?????????????????????????????????????????????????? | | ?????????????????#######################+######### | | ?????????? w @ | | ?????????? | | ?????????? =% | | ??????????? | | | ??????????? h h =%= | | ????????????+######/################### "#### | | ?????????????????# ??????????????# " # | | ?????????????????#???????????????# " # | | ?????????????????????????????????# " # | | ?????????????????????????????????##" # | | ??????????????????????????????????#" " | | ??????????????????????????????????## %" | | ???????????????????????????????????# " | | ???????????????????????????????????# # | | ???????????????????????????????????######+#### | | ????????????????????????????????????????# #??# | | ????????????????????????????????????????# #??# | | ????????????????????????????????????????# #??# | | ????????????????????????????????????????# #??# | | ????????????????????????????????????????# #??# | | ????????????????????????????????????????# #??##### | | ????????????????????????????????????????# #??????? | | ??????????????????????????????????????### ###????? | | ??????????????????????????????????????# #????? | | ??????????????????????????????????????# "" ###### | +----------------------------------------------------+ Best States ------------- Heat Dissipation 37 Energy Generation 15 Energy Capacity 200 Matter Stores 300 Matter Capacity 300 Sight Range 16 Terrain Scan Range 16 Terrain Scan Density 85 Armor Coverage 100 Evasion (%) 63 Launcher Accuracy 20 Recoil Reduction 3 Offensive Hacking 41 Item Schematics ----------------- None Robot Schematics ------------------ None Fabricated ------------ Nothing Alien Tech Used ----------------- None Achievements -------------- Party Time Challenges ------------ None Game ------ Seed SpliceAlertFlamer Manual? 0 Play Time 00:51:52 Cumulative 26.6 hours Start 2024.04.14 @ 16:50:38 End 2024.04.15 @ 01:26:46 Sessions 4 Manual Loads 0 Difficulty Rogue Special Mode None Game No. 27 Rogue 24 Adventurer 3 Explorer 0 Win Type - Total 0 Types 0/0/0/0/0/0/0/0/0 Lore% 29 Gallery% 28 Achievement% 29 Wizard Run 0 Options --------- Layout 1 ASCII 0 Keyboard 0 Movement Arrows Keybinds 0 Fullscreen 1 Font 24/Smallcaps Map View 50x35 Zoom Use 0% Tactical HUD 0 Map Filters NONE Filters NONE Steam 1 RUN: 8f673391-2bf0-4285-8fba-5f97f9a4a16d